[Event "*** SCC Grand Prix: Titled Tuesday Blitz"]
[Site "Chess.com"]
[Date "2020.07.07"]
[Round "3"]
[White "Riptide27"]
[Black "PawnEatingZombie"]
[Result "1-0"]
[WhiteElo "2520"]
[BlackElo "2197"]
[TimeControl "180+1"]
[EndTime "10:26:01 PDT"]
[Termination "Riptide27 won by resignation"]

1. d4 {[%clk 0:03:00.9]} 1... d5 {[%clk 0:02:59.4]} 2. c4 {[%clk 0:02:59.5]}
2... e6 {[%clk 0:02:59.2]} 3. Nc3 {[%clk 0:02:58.6]} 3... Bb4 {[%clk 0:02:58.8]}
4. e3 {[%clk 0:02:50.9]} 4... Nf6 {[%clk 0:02:57.7]} 5. Bd2 {[%clk 0:02:49.2]}
5... O-O {[%clk 0:02:55.1]} 6. Nf3 {[%clk 0:02:48.1]} 6... c5 {[%clk 0:02:55]}
7. a3 {[%clk 0:02:47.1]} 7... Bxc3 {[%clk 0:02:51.9]} 8. Bxc3 {[%clk 0:02:48]}
8... Ne4 {[%clk 0:02:48]} 9. Rc1 {[%clk 0:02:46.2]} 9... Nc6 {[%clk 0:02:41.6]}
10. dxc5 {[%clk 0:02:43.7]} 10... Nxc3 {[%clk 0:02:20.8]} 11. Rxc3 {[%clk
0:02:44.6]} 11... dxc4 {[%clk 0:02:18.6]} 12. Qxd8 {[%clk 0:02:42.3]} 12... Rxd8
{[%clk 0:02:16.8]} 13. Bxc4 {[%clk 0:02:43.2]} 13... a5 {[%clk 0:02:11.1]} 14.
Ke2 {[%clk 0:02:37.5]} 14... e5 {[%clk 0:02:11.1]} 15. Ng5 {[%clk 0:02:34.4]}
15... Rf8 {[%clk 0:01:59.2]} 16. Rd1 {[%clk 0:02:32.9]} 16... Bf5 {[%clk
0:01:54.3]} 17. Bd5 {[%clk 0:02:11.3]} 17... h6 {[%clk 0:01:46.3]} 18. Nf3
{[%clk 0:02:09.1]} 18... Rfe8 {[%clk 0:01:44.9]} 19. Nd2 {[%clk 0:02:02.2]}
19... a4 {[%clk 0:01:34.5]} 20. Ne4 {[%clk 0:01:50.3]} 20... Bxe4 {[%clk
0:01:24.4]} 21. Bxe4 {[%clk 0:01:51.2]} 21... Red8 {[%clk 0:01:14.3]} 22. Rxd8+
{[%clk 0:01:50.1]} 22... Rxd8 {[%clk 0:01:13.4]} 23. Rd3 {[%clk 0:01:50.5]}
23... Rxd3 {[%clk 0:01:12.6]} 24. Kxd3 {[%clk 0:01:49.8]} 24... Na5 {[%clk
0:01:09.5]} 25. Kc3 {[%clk 0:01:49.8]} 1-0

[Event "*** SCC Grand Prix: Titled Tuesday Blitz"]
[Site "Chess.com"]
[Date "2020.07.07"]
[Round "3"]
[White "ExtremeLearner"]
[Black "Fighter008"]
[Result "1-0"]
[WhiteElo "2335"]
[BlackElo "2578"]
[TimeControl "180+1"]
[EndTime "10:26:06 PDT"]
[Termination "ExtremeLearner won by resignation"]

1. d4 {[%clk 0:02:59]} 1... Nf6 {[%clk 0:02:59.4]} 2. c4 {[%clk 0:02:54.5]} 2...
g6 {[%clk 0:02:58.9]} 3. Nc3 {[%clk 0:02:54.3]} 3... Bg7 {[%clk 0:02:58.5]} 4.
e4 {[%clk 0:02:54.8]} 4... d6 {[%clk 0:02:58.5]} 5. Nf3 {[%clk 0:02:55.2]} 5...
O-O {[%clk 0:02:58.6]} 6. Be2 {[%clk 0:02:55.6]} 6... Nbd7 {[%clk 0:02:58.5]} 7.
O-O {[%clk 0:02:53.7]} 7... e5 {[%clk 0:02:58.6]} 8. Be3 {[%clk 0:02:54.2]} 8...
Ng4 {[%clk 0:02:58.1]} 9. Bg5 {[%clk 0:02:53.3]} 9... f6 {[%clk 0:02:58.3]} 10.
Bc1 {[%clk 0:02:50.1]} 10... h5 {[%clk 0:02:58.1]} 11. h3 {[%clk 0:02:48.9]}
11... Nh6 {[%clk 0:02:57.5]} 12. Be3 {[%clk 0:02:42.1]} 12... c6 {[%clk
0:02:55.3]} 13. dxe5 {[%clk 0:02:36.5]} 13... dxe5 {[%clk 0:02:54.6]} 14. c5
{[%clk 0:02:36.8]} 14... Qe7 {[%clk 0:02:53.4]} 15. Bc4+ {[%clk 0:02:36.3]}
15... Kh7 {[%clk 0:02:49.3]} 16. b4 {[%clk 0:02:36.8]} 16... Nf7 {[%clk
0:02:48.4]} 17. Qb3 {[%clk 0:02:32.2]} 17... g5 {[%clk 0:02:40.6]} 18. g4 {[%clk
0:02:29.9]} 18... hxg4 {[%clk 0:02:33.8]} 19. hxg4 {[%clk 0:02:30.8]} 19... Nb8
{[%clk 0:02:34]} 20. Nh2 {[%clk 0:02:26.8]} 20... Nh8 {[%clk 0:02:31.9]} 21. f3
{[%clk 0:02:23.8]} 21... Ng6 {[%clk 0:02:30.7]} 22. Kf2 {[%clk 0:02:20.5]} 22...
Nf4 {[%clk 0:02:18.3]} 23. Rh1 {[%clk 0:02:14.3]} 23... Be6 {[%clk 0:02:17.9]}
24. Nf1+ {[%clk 0:02:08.6]} 24... Kg6 {[%clk 0:02:16.9]} 25. Ng3 {[%clk
0:01:58.5]} 25... Nd7 {[%clk 0:02:03]} 26. Bxf4 {[%clk 0:01:55.9]} 26... exf4
{[%clk 0:02:02.6]} 27. Nf5 {[%clk 0:01:52.9]} 27... Bxc4 {[%clk 0:01:41.8]} 28.
Nxe7+ {[%clk 0:01:52.1]} 28... Kf7 {[%clk 0:01:42.4]} 29. Qxc4+ {[%clk
0:01:52.4]} 29... Kxe7 {[%clk 0:01:43]} 30. Rh7 {[%clk 0:01:50.9]} 30... Rg8
{[%clk 0:01:42.3]} 31. Rd1 {[%clk 0:01:51.2]} 31... Ne5 {[%clk 0:01:42.4]} 32.
Qd4 {[%clk 0:01:48.9]} 32... Rad8 {[%clk 0:01:41.8]} 33. Rxg7+ {[%clk
0:01:48.2]} 33... Rxg7 {[%clk 0:01:41.9]} 34. Qxd8+ {[%clk 0:01:48.4]} 34... Kf7
{[%clk 0:01:42.2]} 35. Rd6 {[%clk 0:01:48.2]} 1-0

[Event "*** SCC Grand Prix: Titled Tuesday Blitz"]
[Site "Chess.com"]
[Date "2020.07.07"]
[Round "3"]
[White "gui_borba"]
[Black "Carnivoras"]
[Result "0-1"]
[WhiteElo "2334"]
[BlackElo "2596"]
[TimeControl "180+1"]
[EndTime "10:26:18 PDT"]
[Termination "Carnivoras won by resignation"]

1. d4 {[%clk 0:03:00.9]} 1... d5 {[%clk 0:02:59.8]} 2. Bf4 {[%clk 0:03:00.8]}
2... Nf6 {[%clk 0:02:59.6]} 3. e3 {[%clk 0:03:00.8]} 3... Bf5 {[%clk 0:02:59.5]}
4. Nf3 {[%clk 0:02:59.6]} 4... e6 {[%clk 0:03:00]} 5. c4 {[%clk 0:02:59.7]} 5...
c6 {[%clk 0:02:59.8]} 6. Bd3 {[%clk 0:02:57.9]} 6... Qb6 {[%clk 0:02:55.6]} 7.
Bxf5 {[%clk 0:02:38.2]} 7... exf5 {[%clk 0:02:36.3]} 8. Qb3 {[%clk 0:02:36.2]}
8... Nbd7 {[%clk 0:02:35.1]} 9. Nc3 {[%clk 0:02:36]} 9... Qxb3 {[%clk
0:02:30.7]} 10. axb3 {[%clk 0:02:36.9]} 10... Bb4 {[%clk 0:02:29.9]} 11. Ke2
{[%clk 0:02:33.1]} 11... O-O {[%clk 0:02:26.8]} 12. Ne5 {[%clk 0:02:32.9]} 12...
Nxe5 {[%clk 0:02:22.9]} 13. Bxe5 {[%clk 0:02:26.7]} 13... Ne4 {[%clk 0:02:22.8]}
14. Nxe4 {[%clk 0:02:24.4]} 14... fxe4 {[%clk 0:02:18.2]} 15. Ra4 {[%clk
0:02:12.8]} 15... Be7 {[%clk 0:02:16.1]} 16. Rha1 {[%clk 0:02:10.3]} 16... a6
{[%clk 0:02:15.6]} 17. c5 {[%clk 0:02:10.4]} 17... f6 {[%clk 0:02:14.3]} 18. Bg3
{[%clk 0:02:09.7]} 18... f5 {[%clk 0:02:12.9]} 19. Rb4 {[%clk 0:02:07.8]} 19...
Ra7 {[%clk 0:02:11.2]} 20. Bc7 {[%clk 0:02:02.4]} 20... Rc8 {[%clk 0:02:04.7]}
21. Bb6 {[%clk 0:02:00.3]} 21... Raa8 {[%clk 0:02:05]} 22. Ba5 {[%clk
0:02:00.5]} 22... Ra7 {[%clk 0:02:02.7]} 23. Bb6 {[%clk 0:01:56.1]} 23... Raa8
{[%clk 0:02:03]} 24. Ba5 {[%clk 0:01:48.5]} 24... Rab8 {[%clk 0:01:58.5]} 25. f4
{[%clk 0:01:47]} 25... b5 {[%clk 0:01:56]} 26. Bb6 {[%clk 0:01:36.9]} 26... Ra8
{[%clk 0:01:56.1]} 27. Ra5 {[%clk 0:01:36.4]} 27... Kf7 {[%clk 0:01:53]} 28. Kf2
{[%clk 0:01:34.2]} 28... Ke6 {[%clk 0:01:53.2]} 29. g3 {[%clk 0:01:34.2]} 29...
Rg8 {[%clk 0:01:52.7]} 30. h4 {[%clk 0:01:31]} 30... Kd7 {[%clk 0:01:52.2]} 31.
h5 {[%clk 0:01:22.8]} 31... Kc8 {[%clk 0:01:51]} 32. Ra1 {[%clk 0:01:22.3]}
32... Kb7 {[%clk 0:01:51.3]} 33. Ba5 {[%clk 0:01:22.9]} 33... Raf8 {[%clk
0:01:45.6]} 34. Rh1 {[%clk 0:01:23.2]} 34... Rf7 {[%clk 0:01:43.7]} 35. Rh4
{[%clk 0:01:22.1]} 35... Bxh4 {[%clk 0:01:42.9]} 0-1

[Event "*** SCC Grand Prix: Titled Tuesday Blitz"]
[Site "Chess.com"]
[Date "2020.07.07"]
[Round "3"]
[White "kidagent"]
[Black "SamuelGhimpu2003"]
[Result "0-1"]
[WhiteElo "2241"]
[BlackElo "2500"]
[TimeControl "180+1"]
[EndTime "10:26:27 PDT"]
[Termination "SamuelGhimpu2003 won by resignation"]

1. e4 {[%clk 0:03:00.9]} 1... e6 {[%clk 0:02:58]} 2. d4 {[%clk 0:03:00.3]} 2...
d5 {[%clk 0:02:58.9]} 3. Nc3 {[%clk 0:02:59.7]} 3... Nf6 {[%clk 0:02:59]} 4. e5
{[%clk 0:02:59]} 4... Nfd7 {[%clk 0:02:59.4]} 5. f4 {[%clk 0:02:59.5]} 5... c5
{[%clk 0:03:00.3]} 6. Nf3 {[%clk 0:02:59.5]} 6... Nc6 {[%clk 0:03:01.2]} 7. Be3
{[%clk 0:02:58.8]} 7... Be7 {[%clk 0:03:02.1]} 8. Qd2 {[%clk 0:02:58.3]} 8...
O-O {[%clk 0:03:03]} 9. dxc5 {[%clk 0:02:57.6]} 9... Qa5 {[%clk 0:03:03.3]} 10.
O-O-O {[%clk 0:02:53.1]} 10... b6 {[%clk 0:03:03.7]} 11. Bb5 {[%clk 0:02:51.2]}
11... Nb4 {[%clk 0:03:03.5]} 12. a3 {[%clk 0:02:26.7]} 12... bxc5 {[%clk
0:03:03.7]} 13. Bxd7 {[%clk 0:02:06.3]} 13... Bxd7 {[%clk 0:03:04.6]} 14. axb4
{[%clk 0:02:05.7]} 14... cxb4 {[%clk 0:03:05.5]} 15. Nb1 {[%clk 0:02:05.1]}
15... Rfc8 {[%clk 0:03:06.1]} 16. Nd4 {[%clk 0:02:02.9]} 16... Qa2 {[%clk
0:03:06.6]} 17. Qd3 {[%clk 0:01:54.8]} 17... a5 {[%clk 0:03:05.7]} 18. Kd2
{[%clk 0:01:50.8]} 18... a4 {[%clk 0:03:04.5]} 19. Ke2 {[%clk 0:01:46]} 19...
Qxb2 {[%clk 0:03:03.2]} 20. Nd2 {[%clk 0:01:42.4]} 20... Rc3 {[%clk 0:02:57]}
21. Rb1 {[%clk 0:01:33.5]} 21... Qa3 {[%clk 0:02:02.2]} 22. Nb5 {[%clk 0:00:25]}
0-1

[Event "*** SCC Grand Prix: Titled Tuesday Blitz"]
[Site "Chess.com"]
[Date "2020.07.07"]
[Round "3"]
[White "ammarzooqi"]
[Black "Djager97"]
[Result "1-0"]
[WhiteElo "2175"]
[BlackElo "2389"]
[TimeControl "180+1"]
[EndTime "10:26:30 PDT"]
[Termination "ammarzooqi won by resignation"]

1. e4 {[%clk 0:03:00]} 1... c5 {[%clk 0:02:58.9]} 2. Nc3 {[%clk 0:02:59]} 2...
Nc6 {[%clk 0:02:58.4]} 3. f4 {[%clk 0:02:59.3]} 3... g6 {[%clk 0:02:57.4]} 4.
Nf3 {[%clk 0:02:59.6]} 4... Bg7 {[%clk 0:02:58]} 5. d3 {[%clk 0:02:58.8]} 5...
e6 {[%clk 0:02:58.3]} 6. g4 {[%clk 0:02:58.8]} 6... Nge7 {[%clk 0:02:57.5]} 7.
Bg2 {[%clk 0:02:58.6]} 7... d5 {[%clk 0:02:57]} 8. O-O {[%clk 0:02:58.1]} 8...
O-O {[%clk 0:02:56.2]} 9. Qe1 {[%clk 0:02:57.8]} 9... Nd4 {[%clk 0:02:39.3]} 10.
f5 {[%clk 0:02:53.5]} 10... Nxc2 {[%clk 0:02:36.2]} 11. Qh4 {[%clk 0:02:53.2]}
11... exf5 {[%clk 0:02:29.2]} 12. Bh6 {[%clk 0:02:49.8]} 12... fxg4 {[%clk
0:02:04.7]} 13. Ng5 {[%clk 0:02:49.4]} 13... f6 {[%clk 0:01:28.4]} 14. Bxg7
{[%clk 0:02:26.5]} 14... fxg5 {[%clk 0:01:28.7]} 15. Qh6 {[%clk 0:02:00.2]}
15... Rxf1+ {[%clk 0:01:05.1]} 16. Rxf1 {[%clk 0:01:57.1]} 16... Bf5 {[%clk
0:01:04.1]} 17. exf5 {[%clk 0:01:22.3]} 17... Nxf5 {[%clk 0:01:04.1]} 18. Rxf5
{[%clk 0:01:22.4]} 18... gxf5 {[%clk 0:01:04.5]} 19. Bxd5+ {[%clk 0:01:22.2]}
19... Qxd5 {[%clk 0:01:04.9]} 20. Nxd5 {[%clk 0:01:22.3]} 1-0

[Event "*** SCC Grand Prix: Titled Tuesday Blitz"]
[Site "Chess.com"]
[Date "2020.07.07"]
[Round "3"]
[White "Shuvalov"]
[Black "Mazetovic"]
[Result "0-1"]
[WhiteElo "2518"]
[BlackElo "2748"]
[TimeControl "180+1"]
[EndTime "10:26:34 PDT"]
[Termination "Mazetovic won by resignation"]

1. Nf3 {[%clk 0:02:58]} 1... Nf6 {[%clk 0:02:58]} 2. c4 {[%clk 0:02:57.7]} 2...
g6 {[%clk 0:02:58.3]} 3. Nc3 {[%clk 0:02:56.9]} 3... Bg7 {[%clk 0:02:58.5]} 4.
d4 {[%clk 0:02:56.5]} 4... O-O {[%clk 0:02:58.5]} 5. e4 {[%clk 0:02:56.5]} 5...
d6 {[%clk 0:02:58.8]} 6. Be2 {[%clk 0:02:55.1]} 6... Na6 {[%clk 0:02:58.2]} 7.
O-O {[%clk 0:02:53.9]} 7... e5 {[%clk 0:02:56.9]} 8. Be3 {[%clk 0:02:53.4]} 8...
c6 {[%clk 0:02:56.4]} 9. h3 {[%clk 0:02:44]} 9... Qe7 {[%clk 0:02:44.8]} 10. Qc2
{[%clk 0:02:30.6]} 10... exd4 {[%clk 0:02:40.8]} 11. Nxd4 {[%clk 0:02:23.2]}
11... Re8 {[%clk 0:02:40.1]} 12. Bf3 {[%clk 0:02:02.9]} 12... Nc5 {[%clk
0:02:38.6]} 13. Rfe1 {[%clk 0:01:41.4]} 13... a5 {[%clk 0:02:37.1]} 14. Rad1
{[%clk 0:01:34.7]} 14... Nfd7 {[%clk 0:02:34.2]} 15. b3 {[%clk 0:01:16.3]} 15...
Nf8 {[%clk 0:02:16.4]} 16. Bf4 {[%clk 0:01:09.5]} 16... Be5 {[%clk 0:02:13.2]}
17. Bc1 {[%clk 0:01:04.1]} 17... Nfe6 {[%clk 0:02:09.5]} 18. Nde2 {[%clk
0:01:01.5]} 18... Ng5 {[%clk 0:02:03.2]} 19. Bxg5 {[%clk 0:00:57.3]} 19... Qxg5
{[%clk 0:02:02.5]} 20. Kh1 {[%clk 0:00:54.6]} 20... Qf6 {[%clk 0:02:01.2]} 21.
Ng1 {[%clk 0:00:47.7]} 21... Bxc3 {[%clk 0:01:58.1]} 22. Re2 {[%clk 0:00:38.1]}
22... Be5 {[%clk 0:01:57.2]} 23. g3 {[%clk 0:00:32.2]} 23... Bxh3 {[%clk
0:01:55.1]} 0-1

[Event "*** SCC Grand Prix: Titled Tuesday Blitz"]
[Site "Chess.com"]
[Date "2020.07.07"]
[Round "3"]
[White "BeanScreen"]
[Black "OtherGabe"]
[Result "1-0"]
[WhiteElo "2571"]
[BlackElo "2369"]
[TimeControl "180+1"]
[EndTime "10:26:37 PDT"]
[Termination "BeanScreen won by resignation"]

1. e4 {[%clk 0:03:00.9]} 1... c5 {[%clk 0:02:58.6]} 2. Nf3 {[%clk 0:03:01.2]}
2... e6 {[%clk 0:02:58.5]} 3. d4 {[%clk 0:03:01.6]} 3... cxd4 {[%clk 0:02:58.5]}
4. Nxd4 {[%clk 0:03:02.1]} 4... Nc6 {[%clk 0:02:59.1]} 5. Nc3 {[%clk 0:03:02.3]}
5... Qc7 {[%clk 0:02:59]} 6. g3 {[%clk 0:03:03]} 6... a6 {[%clk 0:02:57.5]} 7.
Bg2 {[%clk 0:03:03.4]} 7... Nf6 {[%clk 0:02:58]} 8. O-O {[%clk 0:03:03.5]} 8...
Be7 {[%clk 0:02:53.1]} 9. Re1 {[%clk 0:03:04.4]} 9... O-O {[%clk 0:02:52.5]} 10.
Nxc6 {[%clk 0:03:03.3]} 10... dxc6 {[%clk 0:02:53.4]} 11. e5 {[%clk 0:03:03.4]}
11... Rd8 {[%clk 0:02:53.3]} 12. Qf3 {[%clk 0:02:50.7]} 12... Nd5 {[%clk
0:02:51.2]} 13. Nxd5 {[%clk 0:02:50.8]} 13... cxd5 {[%clk 0:02:41.7]} 14. c3
{[%clk 0:02:48.4]} 14... b5 {[%clk 0:02:34.1]} 15. Be3 {[%clk 0:02:47.9]} 15...
Bb7 {[%clk 0:02:33.4]} 16. Bd4 {[%clk 0:02:48]} 16... Rab8 {[%clk 0:02:25.5]}
17. b4 {[%clk 0:02:46.7]} 17... a5 {[%clk 0:02:22.1]} 18. a3 {[%clk 0:02:46.5]}
18... Bc6 {[%clk 0:02:13.9]} 19. h4 {[%clk 0:02:46.1]} 19... Ra8 {[%clk
0:02:12.5]} 20. h5 {[%clk 0:02:38.8]} 20... h6 {[%clk 0:02:11.3]} 21. Qg4 {[%clk
0:02:38.4]} 21... Ra6 {[%clk 0:01:58.5]} 22. Bf1 {[%clk 0:02:37.5]} 22... Rda8
{[%clk 0:01:55.1]} 23. Rad1 {[%clk 0:02:36.1]} 23... axb4 {[%clk 0:01:54.3]} 24.
axb4 {[%clk 0:02:36.4]} 24... Ra2 {[%clk 0:01:38.2]} 25. Bd3 {[%clk 0:02:35.8]}
25... Bd7 {[%clk 0:01:08.4]} 26. Re3 {[%clk 0:02:34.5]} 26... Ra1 {[%clk
0:01:00.8]} 27. Rxa1 {[%clk 0:02:34.2]} 27... Rxa1+ {[%clk 0:01:01.7]} 28. Kg2
{[%clk 0:02:34.7]} 28... Rc1 {[%clk 0:01:01.1]} 29. Rf3 {[%clk 0:02:33.8]} 29...
Be8 {[%clk 0:00:50.1]} 30. Be3 {[%clk 0:02:29]} 30... Kh8 {[%clk 0:00:46.6]} 31.
Bxc1 {[%clk 0:02:29]} 31... Qxc3 {[%clk 0:00:36.8]} 32. Bxb5 {[%clk 0:02:28.8]}
32... Qxc1 {[%clk 0:00:30.5]} 33. Bxe8 {[%clk 0:02:29]} 33... Qc4 {[%clk
0:00:20.3]} 34. Qxc4 {[%clk 0:02:28.6]} 1-0

[Event "*** SCC Grand Prix: Titled Tuesday Blitz"]
[Site "Chess.com"]
[Date "2020.07.07"]
[Round "3"]
[White "Bastiandash"]
[Black "thedjoker98"]
[Result "1-0"]
[WhiteElo "2335"]
[BlackElo "2512"]
[TimeControl "180+1"]
[EndTime "10:26:37 PDT"]
[Termination "Bastiandash won by resignation"]

1. d4 {[%clk 0:03:00.9]} 1... d5 {[%clk 0:02:59.1]} 2. Nf3 {[%clk 0:03:01.3]}
2... Nf6 {[%clk 0:02:59]} 3. c3 {[%clk 0:03:00.8]} 3... g6 {[%clk 0:02:57.4]} 4.
Bg5 {[%clk 0:02:54.5]} 4... Ne4 {[%clk 0:02:56.4]} 5. Bf4 {[%clk 0:02:52.9]}
5... Bg7 {[%clk 0:02:56.5]} 6. Nbd2 {[%clk 0:02:51.8]} 6... O-O {[%clk
0:02:56.5]} 7. e3 {[%clk 0:02:51.1]} 7... c5 {[%clk 0:02:54.3]} 8. Be2 {[%clk
0:02:44.2]} 8... Nc6 {[%clk 0:02:52.1]} 9. O-O {[%clk 0:02:43.8]} 9... Re8
{[%clk 0:02:50.1]} 10. Nxe4 {[%clk 0:02:11]} 10... dxe4 {[%clk 0:02:48.8]} 11.
Nd2 {[%clk 0:02:11.9]} 11... e5 {[%clk 0:02:32.7]} 12. dxe5 {[%clk 0:02:09]}
12... Bxe5 {[%clk 0:02:33.6]} 13. Bxe5 {[%clk 0:01:58.7]} 13... Rxe5 {[%clk
0:02:34.5]} 14. Qc2 {[%clk 0:01:38.4]} 14... Bf5 {[%clk 0:02:24.9]} 15. Rfd1
{[%clk 0:01:29.1]} 15... Qe7 {[%clk 0:01:59.1]} 16. Nc4 {[%clk 0:01:24.5]} 16...
Re6 {[%clk 0:01:58.3]} 17. Rd5 {[%clk 0:01:23.5]} 17... h5 {[%clk 0:01:49.9]}
18. Rad1 {[%clk 0:01:13.7]} 18... Rd8 {[%clk 0:01:49.9]} 19. Qd2 {[%clk
0:00:41.6]} 19... Kg7 {[%clk 0:01:36.2]} 20. Rxd8 {[%clk 0:00:40.2]} 20... Nxd8
{[%clk 0:01:35.2]} 21. Qxd8 {[%clk 0:00:41.1]} 21... b5 {[%clk 0:01:35.1]} 22.
Qxe7 {[%clk 0:00:39.9]} 1-0

[Event "*** SCC Grand Prix: Titled Tuesday Blitz"]
[Site "Chess.com"]
[Date "2020.07.07"]
[Round "3"]
[White "VitaliyBernadskiy"]
[Black "GianmarcoVaR"]
[Result "1-0"]
[WhiteElo "2761"]
[BlackElo "2532"]
[TimeControl "180+1"]
[EndTime "10:26:38 PDT"]
[Termination "VitaliyBernadskiy won by resignation"]

1. e4 {[%clk 0:03:00.9]} 1... c6 {[%clk 0:03:00.5]} 2. d4 {[%clk 0:02:58.8]}
2... d5 {[%clk 0:03:01.1]} 3. f3 {[%clk 0:02:59.3]} 3... dxe4 {[%clk 0:03:00.3]}
4. fxe4 {[%clk 0:03:00.2]} 4... e5 {[%clk 0:03:01]} 5. Nf3 {[%clk 0:03:00.8]}
5... Bg4 {[%clk 0:02:59.4]} 6. Bc4 {[%clk 0:03:00]} 6... Nd7 {[%clk 0:02:59.9]}
7. O-O {[%clk 0:02:57.6]} 7... Ngf6 {[%clk 0:02:59.6]} 8. h3 {[%clk 0:02:43.4]}
8... Bxf3 {[%clk 0:02:53.8]} 9. Qxf3 {[%clk 0:02:44.3]} 9... exd4 {[%clk
0:02:53]} 10. e5 {[%clk 0:01:59]} 10... Nxe5 {[%clk 0:02:52.4]} 11. Re1 {[%clk
0:01:54.2]} 11... Bd6 {[%clk 0:02:44.2]} 12. Bf4 {[%clk 0:01:52.1]} 12... Qa5
{[%clk 0:02:44.1]} 13. b4 {[%clk 0:01:24.7]} 13... Bxb4 {[%clk 0:02:43.5]} 14.
Rxe5+ {[%clk 0:01:23]} 1-0

[Event "*** SCC Grand Prix: Titled Tuesday Blitz"]
[Site "Chess.com"]
[Date "2020.07.07"]
[Round "3"]
[White "realmadridtv"]
[Black "MoreChessJulia"]
[Result "1-0"]
[WhiteElo "2464"]
[BlackElo "1828"]
[TimeControl "180+1"]
[EndTime "10:26:40 PDT"]
[Termination "realmadridtv won by resignation"]

1. e4 {[%clk 0:03:00.9]} 1... g6 {[%clk 0:02:59.6]} 2. d4 {[%clk 0:03:00.3]}
2... Bg7 {[%clk 0:02:58.8]} 3. Nc3 {[%clk 0:03:00.3]} 3... c5 {[%clk 0:02:58.6]}
4. dxc5 {[%clk 0:02:55.4]} 4... Bxc3+ {[%clk 0:02:57.8]} 5. bxc3 {[%clk
0:02:56.3]} 5... Qa5 {[%clk 0:02:57.4]} 6. Qd4 {[%clk 0:02:47.4]} 6... Nf6
{[%clk 0:02:56.7]} 7. Qb4 {[%clk 0:02:26.7]} 7... Qxb4 {[%clk 0:02:55.3]} 8.
cxb4 {[%clk 0:02:27.6]} 8... Nxe4 {[%clk 0:02:55.1]} 9. Bd3 {[%clk 0:02:26.4]}
9... d5 {[%clk 0:02:49.9]} 10. Bb2 {[%clk 0:02:22.4]} 10... O-O {[%clk
0:02:48.7]} 11. c4 {[%clk 0:02:19.5]} 11... Be6 {[%clk 0:02:42]} 12. Ne2 {[%clk
0:02:15.3]} 12... a5 {[%clk 0:02:41.2]} 13. Nf4 {[%clk 0:02:08.2]} 13... axb4
{[%clk 0:02:32.2]} 14. cxd5 {[%clk 0:02:06.4]} 14... Bf5 {[%clk 0:02:29.2]} 15.
g4 {[%clk 0:02:02.6]} 15... Nxf2 {[%clk 0:02:21.7]} 16. Kxf2 {[%clk 0:02:01.9]}
16... Bxd3 {[%clk 0:02:21]} 17. Nxd3 {[%clk 0:02:02.8]} 17... Ra4 {[%clk
0:02:17.1]} 18. Rhc1 {[%clk 0:02:00.1]} 18... Nd7 {[%clk 0:02:14.7]} 19. c6
{[%clk 0:01:59.5]} 19... bxc6 {[%clk 0:02:11.1]} 20. dxc6 {[%clk 0:02:00.4]}
20... Nb6 {[%clk 0:02:08.2]} 21. Ke2 {[%clk 0:01:47.8]} 21... Rfa8 {[%clk
0:02:04.6]} 22. Bd4 {[%clk 0:01:23.2]} 22... Nd5 {[%clk 0:02:03.6]} 23. Rc5
{[%clk 0:01:17.8]} 23... Rxa2+ {[%clk 0:02:02.7]} 24. Rxa2 {[%clk 0:01:17.6]}
24... Rxa2+ {[%clk 0:02:02.3]} 25. Kf3 {[%clk 0:01:18.3]} 25... Nc7 {[%clk
0:02:00]} 26. Be5 {[%clk 0:01:16.2]} 26... Ra7 {[%clk 0:01:53.7]} 27. Bxc7
{[%clk 0:01:14.8]} 27... Rxc7 {[%clk 0:01:52.5]} 28. Nxb4 {[%clk 0:01:15.1]}
28... e6 {[%clk 0:01:50.5]} 29. Na6 {[%clk 0:01:15.3]} 29... Rc8 {[%clk
0:01:40.9]} 30. c7 {[%clk 0:01:15.4]} 30... f6 {[%clk 0:01:40.5]} 31. Rb5 {[%clk
0:01:14.9]} 31... Kf7 {[%clk 0:01:40.3]} 32. Rb8 {[%clk 0:01:14.9]} 1-0

[Event "*** SCC Grand Prix: Titled Tuesday Blitz"]
[Site "Chess.com"]
[Date "2020.07.07"]
[Round "3"]
[White "boo786"]
[Black "tylityli"]
[Result "1-0"]
[WhiteElo "2423"]
[BlackElo "2167"]
[TimeControl "180+1"]
[EndTime "10:26:41 PDT"]
[Termination "boo786 won by resignation"]

1. Nf3 {[%clk 0:03:00.9]} 1... Nc6 {[%clk 0:02:58.8]} 2. d4 {[%clk 0:02:59.9]}
2... d5 {[%clk 0:02:58.6]} 3. Bf4 {[%clk 0:02:57.7]} 3... Bg4 {[%clk 0:02:57.5]}
4. Nbd2 {[%clk 0:02:55.3]} 4... e6 {[%clk 0:02:57.7]} 5. h3 {[%clk 0:02:53.4]}
5... Bh5 {[%clk 0:02:56.9]} 6. e3 {[%clk 0:02:51.5]} 6... Bd6 {[%clk 0:02:56.3]}
7. Bb5 {[%clk 0:02:48]} 7... Ne7 {[%clk 0:02:55.1]} 8. O-O {[%clk 0:02:46.6]}
8... O-O {[%clk 0:02:54.3]} 9. c3 {[%clk 0:02:46.5]} 9... a6 {[%clk 0:02:54.1]}
10. Ba4 {[%clk 0:02:45.3]} 10... b5 {[%clk 0:02:53.3]} 11. Bc2 {[%clk
0:02:45.3]} 11... Bg6 {[%clk 0:02:53.2]} 12. Bxd6 {[%clk 0:02:38.9]} 12... cxd6
{[%clk 0:02:50.6]} 13. Bxg6 {[%clk 0:02:31.6]} 13... Nxg6 {[%clk 0:02:45.4]} 14.
e4 {[%clk 0:02:31.6]} 14... dxe4 {[%clk 0:02:45]} 15. Nxe4 {[%clk 0:02:31.6]}
15... Nce7 {[%clk 0:02:32.5]} 16. Qd2 {[%clk 0:02:29.6]} 16... Nd5 {[%clk
0:02:30.5]} 17. a4 {[%clk 0:02:28.5]} 17... Qb6 {[%clk 0:02:27.3]} 18. Rfe1
{[%clk 0:02:24.6]} 18... Qc6 {[%clk 0:02:23.1]} 19. h4 {[%clk 0:02:16.5]} 19...
bxa4 {[%clk 0:02:10.2]} 20. h5 {[%clk 0:02:15.6]} 20... Nge7 {[%clk 0:02:09.2]}
21. h6 {[%clk 0:02:14.2]} 21... g6 {[%clk 0:02:00.3]} 22. Nfg5 {[%clk
0:02:04.6]} 22... Nf5 {[%clk 0:01:46]} 23. Rac1 {[%clk 0:02:01.1]} 23... Nxh6
{[%clk 0:00:50.2]} 24. c4 {[%clk 0:01:48.6]} 24... Ne7 {[%clk 0:00:47.8]} 25. d5
{[%clk 0:01:44.9]} 25... Qd7 {[%clk 0:00:37.9]} 26. Nf6+ {[%clk 0:01:43.3]} 1-0